fUSD/lending_fUSD_20240101
["ID","MTS","AMOUNT","RATE_DAILY","PERIOD"]
[309775903,1704111039865,-156.80094986,0.0003199,2]
[309775904,1704111039874,-277965.1883139,0.00032,4]
[309775905,1704111039884,-45675.17634613,0.00032,2]
[309775906,1704111039893,-302.04,0.00032137,2]
[309775907,1704111039902,-181.68,0.00032242,2]
[309775908,1704111039911,-302.04,0.00032296,2]
[309775909,1704111039921,-159.44,0.00032354,2]
[309775910,1704111039931,-200.0,0.00032373,2]
[309775911,1704111039941,-152.99388558,0.00032412,2]
[309775912,1704111039950,-302.04,0.00032455,2]
[309775913,1704111039960,-544.7,0.00032481,2]
[309775914,1704111039970,-302.04,0.00032614,2]
[309775915,1704111039981,-802.8,0.00032742,2]
[309775916,1704111039990,-159.44,0.00032761,2]
[309775917,1704111040001,-302.04,0.00032773,2]
[309775918,1704111040011,-217.0,0.00032877,15]
[309775919,1704111040021,-2500.0,0.00032877,7]
[309775920,1704111040031,-383.15,0.0003288,2]
[309775921,1704111040040,-383.15,0.0003288,2]
[309775922,1704111040050,-8371.54,0.0003288,2]
[309775923,1704111040059,-302.04,0.00032933,2]
[309775924,1704111040068,-302.04,0.00033092,2]
[309775925,1704111040077,-159.44,0.00033169,2]
[309775926,1704111040087,-164.65,0.00033192,2]
[309775927,1704111040096,-1888.44,0.00033215,2]
[309775928,1704111040105,-302.04,0.00033251,2]
[309775929,1704111040115,-365.78,0.00033343,2]
[309775930,1704111040124,-628.23016533,0.00033375,2]
[309775931,1704111040133,-154.17,0.00033428,2]
[309775932,1704111040142,-544.7,0.00033459,2]
[309775933,1704111040152,-152.99388558,0.0003349,2]
[309775934,1704111040162,-159.44,0.00033576,2]
[309775935,1704111040173,-657.7218222,0.00033756,6]
[309775936,1704111040184,-159.44,0.00033983,2]
[309775937,1704111040196,-8371.54,0.00033985,2]
[309775938,1704111040206,-383.15,0.00033986,2]
[309775939,1704111040215,-1851.98145614,0.00033995,4]
[309775940,1704111040225,-249.79462893,0.00033995,4]
[309775941,1704111040236,-560.48133924,0.00033995,4]
[309775942,1704111040248,-428.24724263,0.00033995,4]
[309775943,1704111040259,-313.7104354,0.00033995,4]
[309775944,1704111040269,-347.7913174,0.00033995,4]
[309775945,1704111040278,-218.64004931,0.00033995,4]
[309775947,1704111040287,-573.66482822,0.00033995,4]
[309775949,1704111040296,-223.47776664,0.00033995,2]
[309775950,1704111040305,-155.20962523,0.00033995,4]
[309775952,1704111040314,-458.93711561,0.00033995,4]
[309775954,1704111040323,-243.80387807,0.00033995,4]
[309775956,1704111040332,-287.8141388,0.00033995,4]
[309775959,1704111040341,-360.0278767,0.00033995,4]
[309775962,1704111040351,-258.63869852,0.00033995,4]
[309775964,1704111040359,-1111.31762299,0.00033995,4]
[309775965,1704111040369,-323.11985177,0.00033995,4]
[309775966,1704111040378,-4344.34805442,0.00033995,4]
[309775967,1704111040387,-155.17020376,0.00033995,4]
[309775968,1704111040396,-537.18148593,0.00033995,10]
[309775969,1704111040405,-199.40938153,0.00033995,4]
[309775970,1704111040414,-167.25123416,0.00033995,4]
[309775971,1704111040423,-299.02676355,0.00033995,4]
[309775972,1704111040432,-1057.34067725,0.00033995,2]
[309775973,1704111040442,-930.3125847,0.00033995,2]
[309775974,1704111040451,-216.52681729,0.00033996,4]
[309775975,1704111040460,-258.83583849,0.00033996,4]
[309775976,1704111040469,-238.33977346,0.00033996,4]
[309775977,1704111040478,-160.82636773,0.00033996,4]
[309775978,1704111040488,-5242.32156854,0.00033996,4]
[309775979,1704111040497,-24273.3907457,0.00033996,4]
[309775980,1704111040506,-1000.0,0.00034,4]
[309775981,1704111040516,-800.0,0.00034142,2]
[309775982,1704111040525,-159.44,0.00034391,2]
[309775983,1704111040535,-544.7,0.00034438,2]
[309775984,1704111040544,-218.18124742,0.0003452,4]
[309775985,1704111040554,-152.99388558,0.00034567,2]
[309775986,1704111040563,-159.44,0.00034798,2]
[309775987,1704111040573,-628.23016533,0.0003485,2]
[309775988,1704111040582,-7160.92728425,0.000349,2]
[309775989,1704111040592,-158.21370241,0.000349,2]
[309775990,1704111040602,-158.2137024,0.000349,2]
[309775991,1704111040611,-158.2137024,0.000349,2]
[309775992,1704111040620,-158.2137024,0.000349,2]
[309775993,1704111040629,-158.2137024,0.000349,2]
[309775994,1704111040638,-205.0,0.00034996,13]
[309775995,1704111040648,-2043.0,0.00035,2]
[309775996,1704111040657,-164.65,0.00035186,2]
[309775997,1704111040668,-159.44,0.00035205,2]
[309775998,1704111040678,-280.70420003,0.00035258,4]
[309775999,1704111040687,-544.7,0.00035416,2]
[309776000,1704111040696,-302.96537039,0.00035434,4]
[309776001,1704111040705,-7734.0,0.000355,3]
[309776002,1704111040714,-41326.87203343,0.00035516,3]
[309776003,1704111040765,-14228.12796657,0.00035516,3]
[309776004,1704111040775,-167.73781416,0.00035516,2]
[309776005,1704111040784,-154.18524576,0.00035516,2]
[309776006,1704111040793,-177.40465776,0.00035516,8]
[309776007,1704111040802,-2554.05285832,0.00035516,8]
[309776008,1704111040812,-8371.54,0.0003558,2]
[309776009,1704111040821,-52237.2,0.000356,2]
[309776010,1704111040831,-383.15,0.00035602,2]
[309776011,1704111040840,-8371.54,0.00035606,2]
[309776012,1704111040849,-365.78,0.00035607,2]
[309776013,1704111040858,-1245.91605115,0.00035612,120]
[309776014,1704111040867,-200.52592493,0.00035612,4]
[309776015,1704111040877,-214.61659068,0.00035612,4]
[309776016,1704111040886,-10498.98144309,0.00035612,4]
[309776017,1704111040895,-155.35351659,0.00035612,4]
[309776018,1704111040904,-4555.69742065,0.00035612,4]
[309776019,1704111040913,-155.0,0.00035612,4]
[309776020,1704111040922,-155.32288667,0.00035612,4]
[309776021,1704111040930,-310.0,0.00035612,2]
[309776022,1704111040940,-408.54992442,0.00035612,4]
[309776023,1704111040949,-400.0,0.00035612,2]
[309776024,1704111040958,-168.13226102,0.00035612,4]
[309776025,1704111040967,-155.86518808,0.00035612,4]
[309776026,1704111040977,-1149.68867926,0.00035612,4]
[309776027,1704111040986,-621.70316057,0.00035612,4]
[309776028,1704111040995,-168.62920921,0.00035612,2]
[309776029,1704111041005,-198.85792776,0.00035612,4]
[309776030,1704111041014,-155.0,0.00035612,4]
[309776031,1704111041023,-260.19540139,0.00035612,4]
[309776032,1704111041033,-155.0,0.00035612,2]
[309776033,1704111041042,-184.22579518,0.00035612,4]
[309776034,1704111041051,-155.38713475,0.00035612,4]
[309776035,1704111041060,-319.7112659,0.00035612,4]
[309776036,1704111041070,-180.92455065,0.00035612,4]
[309776037,1704111041079,-155.0,0.00035612,4]
[309776038,1704111041089,-159.44,0.00035613,2]
[309776039,1704111041098,-104.5767301,0.00035613,4]
[309776040,1704111041111,-1285.22235789,0.00035613,4]
[309776041,1704111041122,-951.26132272,0.00035613,4]
[309776042,1704111041151,-1070.38310566,0.00035613,4]
[309776043,1704111041159,-657.7218222,0.00035614,7]
[309776044,1704111041168,-270.62291569,0.00035614,4]
[309776045,1704111041177,-2814.8,0.00035615,2]
[309776046,1704111041187,-158.2137024,0.00035616,2]
[309776047,1704111041196,-500.0,0.00035616,2]
[309776048,1704111041205,-511.85394744,0.00035616,2]
[309776049,1704111041215,-516.28209493,0.00035616,2]
[309776050,1704111041226,-526.07996468,0.00035616,2]
[309776051,1704111041236,-2000.0,0.00035616,2]
[309776052,1704111041246,-2000.0,0.00035616,2]
[309776053,1704111041257,-2000.0,0.00035616,2]
[309776054,1704111041267,-2000.0,0.00035616,2]
[309776055,1704111041277,-2000.0,0.00035616,2]
[309776056,1704111041286,-2000.0,0.00035616,2]
[309776057,1704111041297,-2000.0,0.00035616,2]
[309776058,1704111041309,-2000.0,0.00035616,2]
[309776059,1704111041320,-2000.0,0.00035616,2]
[309776060,1704111041329,-2000.0,0.00035616,2]
[309776061,1704111041339,-2000.0,0.00035616,2]
[309776062,1704111041348,-2000.0,0.00035616,2]
[309776063,1704111041359,-2000.0,0.00035616,2]
[309776064,1704111041369,-2000.0,0.00035616,2]
[309776065,1704111041378,-608.49908942,0.00035616,2]
[309776077,1704111041735,-234.78997094,0.00024708,2]
[309776078,1704111041745,-416.54397333,0.00024708,2]
[309776079,1704111041755,-2605.2545687,0.00024708,2]
[309776080,1704111041765,-155.0,0.00024708,2]
[309776081,1704111041775,-3035.06116925,0.00024708,2]
[309776082,1704111041785,-2147.07647278,0.00024709,2]
[309776083,1704111041801,-1470.20580155,0.00024709,2]
[309776084,1704111041813,-7038.59267082,0.00024709,2]
[309776085,1704111041823,-499.99,0.00024741,2]
[309776086,1704111041833,-1391.50091058,0.00035616,2]
[309776087,1704111041843,-2000.0,0.00035616,2]
[309776088,1704111041852,-2000.0,0.00035616,2]
[309776089,1704111041862,-2000.0,0.00035616,2]
[309776090,1704111041871,-2000.0,0.00035616,2]
[309776091,1704111041880,-648.70794396,0.00035616,2]
[309776092,1704111041889,-506.36212207,0.00035616,2]
[309776093,1704111041900,-502.74543391,0.00035616,2]
[309776094,1704111041909,-503.43630887,0.00035616,2]
[309776095,1704111041918,-510.51055013,0.00035616,2]
[309776096,1704111041928,-531.33623051,0.00035616,2]
[309776097,1704111041938,-523.32546653,0.00035616,2]
[309776098,1704111041948,-594.19711442,0.00035616,2]
[309776099,1704111041958,-526.17348477,0.00035616,2]
[309776100,1704111041969,-503.05805642,0.00035616,2]
[309776101,1704111041980,-519.89406527,0.00035616,2]
[309776102,1704111041989,-521.85787997,0.00035616,2]
[309776103,1704111041998,-500.0,0.00035616,2]
[309776104,1704111042007,-432.92666658,0.00035616,2]
[309776105,1704111042017,-514.17501745,0.00035616,2]
[309776106,1704111042026,-505.73324911,0.00035616,2]
[309776107,1704111042035,-603.29340397,0.00035616,2]
[309776108,1704111042044,-264.9835037,0.00035616,2]
[309776109,1704111042054,-522.14777066,0.00035616,2]
[309776110,1704111042063,-477.46371896,0.00035616,2]
[309776111,1704111042072,-500.0,0.00035616,2]
[309776112,1704111042082,-515.19314243,0.00035616,2]
[309776113,1704111042095,-508.2115112,0.00035616,2]
[309776114,1704111042104,-372.4234725,0.00035616,2]
[309776115,1704111042113,-417.31943213,0.00035616,2]
[309776116,1704111042123,-516.09338916,0.00035616,2]
[309776117,1704111042133,-500.0,0.00035616,2]
[309776118,1704111042143,-520.0844456,0.00035616,2]
[309776119,1704111042154,-520.88945087,0.00035616,2]
[309776120,1704111042165,-500.0,0.00035616,2]
[309776121,1704111042175,-557.14041933,0.00035616,2]
[309776122,1704111042185,-500.0,0.00035616,2]
[309776123,1704111042195,-500.0,0.00035616,2]
[309776124,1704111042204,-500.0,0.00035616,2]
[309776125,1704111042214,-500.0,0.00035616,2]
[309776126,1704111042223,-576.42222702,0.00035616,2]
[309776127,1704111042233,-546.41248883,0.00035616,2]
[309776128,1704111042243,-572.73196346,0.00035616,2]
[309776129,1704111042252,-528.37146751,0.00035616,2]
[309776130,1704111042262,-522.20799173,0.00035616,2]
[309776131,1704111042271,-390.46639105,0.00035616,2]
[309776132,1704111042281,-513.66597316,0.00035616,2]
[309776133,1704111042290,-500.0,0.00035616,2]
[309776134,1704111042300,-537.90047114,0.00035616,2]
[309776135,1704111042309,-540.90070485,0.00035616,2]
[309776136,1704111042319,-500.0,0.00035616,2]
[309776137,1704111042329,-514.50330271,0.00035616,2]
[309776138,1704111042338,-517.23599671,0.00035616,2]
[309776139,1704111042348,-500.0,0.00035616,2]
[309776140,1704111042357,-500.0,0.00035616,2]
[309776141,1704111042366,-528.89848301,0.00035616,2]
[309776142,1704111042375,-558.67445278,0.00035616,2]
[309776143,1704111042384,-500.0,0.00035616,2]
[309776144,1704111042394,-523.54761625,0.00035616,2]
[309776145,1704111042403,-500.0,0.00035616,2]
[309776146,1704111042413,-500.0,0.00035616,2]
[309776147,1704111042422,-539.10949711,0.00035616,2]
[309776148,1704111042434,-556.6566071,0.00035616,2]
[309776149,1704111042443,-500.17074379,0.00035616,2]
[309776150,1704111042453,-500.0,0.00035616,2]
[309776151,1704111042462,-557.12151125,0.00035616,2]
[309776152,1704111042472,-500.0,0.00035616,2]
[309776153,1704111042483,-571.18836671,0.00035616,2]
[309776154,1704111042493,-526.43299995,0.00035616,2]
[309776155,1704111042502,-536.52087985,0.00035616,2]
[309776156,1704111042511,-500.0,0.00035616,2]
[309776157,1704111042521,-540.59903621,0.00035616,2]
[309776158,1704111042533,-527.72249161,0.00035616,2]
[309776159,1704111042546,-617.79990294,0.00035616,2]
[309776160,1704111042556,-186.75918848,0.00035616,2]
[309776161,1704111042566,-526.25911398,0.00035616,2]
[309776162,1704111042575,-523.54076553,0.00035616,2]
[309776163,1704111042586,-90.96087119,0.00035616,2]
[309776177,1704111044868,-0.00398649,0.0002474,2]
[309776178,1704111044886,-154.99601351,0.0002474,2]
[309776179,1704111044896,-96.44541587,0.00035616,2]
[309776180,1704111044908,-312.59371294,0.00035616,2]
[309776181,1704111044918,-500.0,0.00035616,2]
[309776182,1704111044928,-575.81194359,0.00035616,2]
[309776183,1704111044937,-500.0,0.00035616,2]
[309776184,1704111044947,-500.0,0.00035616,2]
[309776185,1704111044958,-500.0,0.00035616,2]
[309776186,1704111044967,-545.62909949,0.00035616,2]
[309776187,1704111044977,-500.0,0.00035616,2]
[309776188,1704111044987,-500.0,0.00035616,2]
[309776189,1704111044997,-183.77479111,0.00035616,2]
[309776190,1704111045007,-500.0,0.00035616,2]
[309776191,1704111045016,-500.0,0.00035616,2]
[309776192,1704111045025,-500.0,0.00035616,2]
[309776193,1704111045035,-500.0,0.00035616,2]
[309776194,1704111045044,-500.0,0.00035616,2]
[309776196,1704111045053,-500.0,0.00035616,2]
[309776198,1704111045062,-230.98448096,0.00035616,2]
[309776200,1704111045070,-500.0,0.00035616,2]
[309776202,1704111045079,-500.0,0.00035616,2]
[309776204,1704111045088,-500.0,0.00035616,2]
[309776206,1704111045097,-500.0,0.00035616,2]
[309776208,1704111045106,-234.44815656,0.00035616,2]
[309776210,1704111045115,-500.0,0.00035616,2]
[309776212,1704111045125,-516.08115071,0.00035616,2]
[309776213,1704111045135,-500.0,0.00035616,2]
[309776215,1704111045146,-512.27316491,0.00035616,2]
[309776216,1704111045159,-500.0,0.00035616,2]
[309776217,1704111045169,-500.0,0.00035616,2]
[309776218,1704111045179,-500.0,0.00035616,2]
[309776219,1704111045188,-500.0,0.00035616,2]
[309776220,1704111045198,-500.0,0.00035616,2]
[309776221,1704111045207,-500.0,0.00035616,2]
[309776222,1704111045218,-500.0,0.00035616,2]
[309776223,1704111045228,-500.0,0.00035616,2]
[309776224,1704111045237,-500.0,0.00035616,2]
[309776225,1704111045247,-283.4778163,0.00035616,2]
[309776226,1704111045256,-500.0,0.00035616,2]
[309776227,1704111045265,-500.0,0.00035616,2]
[309776228,1704111045274,-500.0,0.00035616,2]
[309776229,1704111045283,-500.0,0.00035616,2]
[309776230,1704111045292,-500.0,0.00035616,2]
[309776231,1704111045302,-500.0,0.00035616,2]
[309776232,1704111045311,-500.0,0.00035616,2]
[309776233,1704111045320,-500.0,0.00035616,2]
[309776234,1704111045329,-500.0,0.00035616,2]
[309776235,1704111045338,-500.0,0.00035616,2]
[309776236,1704111045347,-500.0,0.00035616,2]
[309776237,1704111045356,-500.0,0.00035616,2]
[309776238,1704111045365,-502.98286587,0.00035616,2]
[309776239,1704111045374,-500.0,0.00035616,2]
[309776240,1704111045383,-500.0,0.00035616,2]
[309776241,1704111045392,-557.54116449,0.00035616,2]
[309776242,1704111045401,-500.0,0.00035616,2]
[309776243,1704111045410,-515.53007755,0.00035616,2]
[309776244,1704111045418,-500.0,0.00035616,2]
[309776245,1704111045428,-500.0,0.00035616,2]
[309776246,1704111045437,-500.0,0.00035616,2]
[309776247,1704111045446,-500.0,0.00035616,2]
[309776248,1704111045455,-500.0,0.00035616,7]
[309776249,1704111045464,-500.0,0.00035616,2]
[309776250,1704111045473,-500.0,0.00035616,2]
[309776251,1704111045482,-500.0,0.00035616,2]
[309776252,1704111045491,-421.87628552,0.00035616,2]
[309776253,1704111045500,-500.0,0.00035616,2]
[309776254,1704111045509,-131.90369308,0.00035616,2]
[309776255,1704111045528,-368.09630692,0.00035616,2]
[309776256,1704111045537,-500.0,0.00035616,2]
[309776257,1704111045547,-500.0,0.00035616,2]
[309776258,1704111045557,-451.80150262,0.00035616,2]
[309776259,1704111045573,-48.19849738,0.00035616,2]
[309776260,1704111045583,-430.14480446,0.00035616,2]
[309776262,1704111046051,-69.85519554,0.00035616,2]
[309776263,1704111046061,-500.0,0.00035616,2]
[309776264,1704111046074,-500.0,0.00035616,2]
[309776265,1704111046084,-500.0,0.00035616,2]
[309776266,1704111046094,-536.91133569,0.00035616,2]
[309776267,1704111046103,-500.0,0.00035616,2]
[309776268,1704111046112,-500.0,0.00035616,2]
[309776269,1704111046122,-500.0,0.00035616,2]
[309776270,1704111046131,-187.107239,0.00035616,2]
[309776271,1704111046144,-312.892761,0.00035616,2]
[309776272,1704111046154,-500.0,0.00035616,2]
[309776273,1704111046163,-534.14436211,0.00035616,2]
[309776274,1704111046172,-500.0,0.00035616,2]
[309776275,1704111046181,-279.19,0.00035616,2]
[309776276,1704111046190,-500.0,0.00035616,2]
[309776277,1704111046200,-500.0,0.00035616,2]
[309776278,1704111046209,-528.57438736,0.00035616,2]
[309776279,1704111046218,-500.0,0.00035616,2]
[309776280,1704111046227,-500.0,0.00035616,2]
[309776281,1704111046236,-500.0,0.00035616,2]
[309776282,1704111046246,-500.0,0.00035616,2]
[309776283,1704111046255,-605.49694541,0.00035616,2]
[309776285,1704111046264,-500.0,0.00035616,2]
[309776287,1704111046274,-617.49476481,0.00035616,2]
[309776289,1704111046283,-522.16918706,0.00035616,2]
[309776291,1704111046292,-500.0,0.00035616,2]
[309776293,1704111046300,-500.0,0.00035616,2]
[309776295,1704111046310,-530.99099298,0.00035616,2]
[309776297,1704111046318,-500.0,0.00035616,2]
[309776298,1704111046327,-500.0,0.00035616,2]
[309776299,1704111046336,-513.89608963,0.00035616,2]
[309776300,1704111046346,-500.0,0.00035616,2]
[309776301,1704111046355,-500.0,0.00035616,2]
[309776302,1704111046364,-500.0,0.00035616,2]
[309776303,1704111046373,-558.11378468,0.00035616,2]
[309776304,1704111046382,-500.0,0.00035616,2]
[309776305,1704111046391,-511.30426412,0.00035616,2]
[309776306,1704111046400,-535.60714572,0.00035616,2]
[309776307,1704111046409,-544.41763406,0.00035616,2]
[309776308,1704111046421,-416.83570492,0.00035616,2]
[309776309,1704111046431,-500.0,0.00035616,2]
[309776310,1704111046440,-521.77543262,0.00035616,2]
[309776311,1704111046451,-519.09601854,0.00035616,2]
[309776312,1704111046459,-505.87027302,0.00035616,2]
[309776313,1704111046469,-548.10427965,0.00035616,2]
[309776314,1704111046478,-554.78308726,0.00035616,2]
[309776315,1704111046487,-500.0,0.00035616,2]
[309776316,1704111046496,-152.93725595,0.00035616,2]
[309776317,1704111046505,-560.68370385,0.00035616,2]
[309776318,1704111046514,-500.0,0.00035616,2]
[309776319,1704111046523,-551.15789808,0.00035616,2]
[309776320,1704111046533,-500.0,0.00035616,2]
[309776321,1704111046543,-500.0,0.00035616,2]
[309776322,1704111046558,-542.67707064,0.00035616,2]
[309776323,1704111046567,-538.64675219,0.00035616,2]
[309776324,1704111046577,-542.95650124,0.00035616,2]
[309776325,1704111046586,-500.0,0.00035616,2]
[309776326,1704111046597,-500.0,0.00035616,2]
[309776327,1704111046606,-500.0,0.00035616,2]
[309776328,1704111046615,-500.0,0.00035616,2]
[309776329,1704111046625,-514.47747146,0.00035616,2]
[309776330,1704111046635,-500.0,0.00035616,2]
[309776331,1704111046644,-524.38531002,0.00035616,2]
[309776332,1704111046655,-530.40403982,0.00035616,2]
[309776333,1704111046665,-500.0,0.00035616,2]
[309776334,1704111046676,-554.12631545,0.00035616,2]
[309776335,1704111046685,-530.56846388,0.00035616,2]
[309776336,1704111046695,-510.09846255,0.00035616,2]
[309776337,1704111046705,-500.0,0.00035616,2]
[309776338,1704111046714,-645.8909463,0.00035616,2]
[309776339,1704111046723,-500.0,0.00035616,2]
[309776340,1704111046736,-500.0,0.00035616,2]
[309776341,1704111046745,-500.0,0.00035616,2]
[309776342,1704111046755,-521.01719498,0.00035616,2]
[309776343,1704111046765,-526.89270636,0.00035616,2]
[309776344,1704111046774,-521.52836729,0.00035616,2]
[309776345,1704111046783,-500.0,0.00035616,2]
[309776346,1704111046793,-506.93034544,0.00035616,2]
[309776347,1704111046803,-522.3438948,0.00035616,2]
[309776348,1704111046812,-586.01039985,0.00035616,2]
[309776349,1704111046821,-500.0,0.00035616,2]
[309776350,1704111046830,-500.0,0.00035616,2]
[309776351,1704111046839,-506.37318622,0.00035616,2]
[309776352,1704111046849,-553.99413537,0.00035616,2]
[309776353,1704111046858,-500.0,0.00035616,2]
[309776354,1704111046867,-500.0,0.00035616,2]
[309776355,1704111046877,-500.0,0.00035616,2]
[309776356,1704111046886,-500.0,0.00035616,2]
[309776357,1704111046895,-510.97228104,0.00035616,2]
[309776358,1704111046906,-500.0,0.00035616,2]
[309776359,1704111046916,-500.0,0.00035616,2]
[309776360,1704111046926,-646.31226804,0.00035616,2]
[309776361,1704111046935,-519.85880462,0.00035616,2]
[309776362,1704111046946,-546.77236656,0.00035616,2]
[309776363,1704111046958,-565.07033551,0.00035616,2]
[309776364,1704111046967,-557.44762392,0.00035616,2]
[309776365,1704111046977,-545.99375151,0.00035616,2]
[309776366,1704111046986,-500.0,0.00035616,2]
[309776367,1704111046995,-500.0,0.00035616,2]
[309776368,1704111047004,-504.34230464,0.00035616,2]
[309776369,1704111047013,-500.0,0.00035616,2]
[309776370,1704111047022,-500.0,0.00035616,2]
[309776371,1704111047031,-500.0,0.00035616,2]
[309776372,1704111047040,-500.0,0.00035616,2]
[309776373,1704111047050,-500.0,0.00035616,2]
[309776374,1704111047059,-171.65755496,0.00035616,2]
[309776375,1704111047068,-500.0,0.00035616,2]
[309776376,1704111047077,-614.24531622,0.00035616,2]
[309776377,1704111047086,-500.0,0.00035616,2]
[309776378,1704111047096,-500.0,0.00035616,2]
[309776379,1704111047106,-500.0,0.00035616,2]
[309776380,1704111047115,-167.06633285,0.00035616,2]
[309776381,1704111047124,-505.89464232,0.00035616,2]
[309776382,1704111047133,-508.93554754,0.00035616,2]
[309776383,1704111047142,-500.0,0.00035616,2]
[309776384,1704111047151,-511.11437307,0.00035616,2]
[309776385,1704111047161,-200.99427365,0.00035616,2]
[309776386,1704111047170,-413.62817479,0.00035616,2]
[309776387,1704111047179,-500.0,0.00035616,2]
[309776388,1704111047188,-500.0,0.00035616,2]
[309776389,1704111047197,-500.0,0.00035616,2]
[309776390,1704111047206,-500.0,0.00035616,2]
[309776391,1704111047218,-500.0,0.00035616,2]
[309776392,1704111047228,-627.37,0.00035616,2]
[309776393,1704111047237,-500.0,0.00035616,2]
[309776394,1704111047246,-500.0,0.00035616,2]
[309776395,1704111047256,-514.38184387,0.00035616,2]
[309776396,1704111047265,-634.2152968,0.00035616,2]
[309776397,1704111047274,-500.0,0.00035616,2]
[309776398,1704111047283,-500.0,0.00035616,2]
[309776399,1704111047293,-248.31796094,0.00035616,2]
[309776400,1704111047302,-500.0,0.00035616,2]
[309776401,1704111047314,-504.98863585,0.00035616,2]
[309776402,1704111047323,-500.0,0.00035616,2]
[309776403,1704111047332,-517.82040025,0.00035616,2]
[309776404,1704111047342,-500.0,0.00035616,2]
[309776405,1704111047352,-500.0,0.00035616,2]
[309776406,1704111047361,-500.0,0.00035616,2]
[309776407,1704111047370,-500.0,0.00035616,2]
[309776408,1704111047379,-524.75627768,0.00035616,2]
[309776409,1704111047388,-508.98151907,0.00035616,2]
[309776410,1704111047397,-500.0,0.00035616,2]
[309776411,1704111047406,-500.0,0.00035616,2]
[309776412,1704111047415,-500.0,0.00035616,2]
[309776413,1704111047423,-534.85518355,0.00035616,2]
[309776414,1704111047432,-1000.0,0.00035616,2]
[309776415,1704111047441,-500.0,0.00035616,2]
[309776416,1704111047451,-500.0,0.00035616,2]
[309776417,1704111047459,-513.44,0.00035616,2]
[309776418,1704111047469,-500.0,0.00035616,2]
[309776419,1704111047478,-500.0,0.00035616,2]
[309776420,1704111047487,-584.62735964,0.00035616,2]
[309776421,1704111047497,-500.0,0.00035616,2]
[309776422,1704111047508,-500.0,0.00035616,2]
[309776423,1704111047518,-500.0,0.00035616,2]
[309776424,1704111047527,-618.36,0.00035616,2]
[309776425,1704111047536,-500.0,0.00035616,2]
[309776426,1704111047546,-559.88886222,0.00035616,2]
[309776427,1704111047556,-500.0,0.00035616,2]
[309776428,1704111047565,-500.0,0.00035616,2]
[309776429,1704111047575,-500.0,0.00035616,2]
[309776430,1704111047585,-500.0,0.00035616,2]
[309776431,1704111047594,-500.0,0.00035616,2]
[309776432,1704111047603,-500.0,0.00035616,5]
[309776433,1704111047613,-500.0,0.00035616,2]
[309776434,1704111047623,-500.0,0.00035616,2]
[309776435,1704111047633,-500.0,0.00035616,2]
[309776436,1704111047643,-520.62281906,0.00035616,2]
[309776437,1704111047653,-624.72624621,0.00035616,2]
[309776438,1704111047662,-500.0,0.00035616,2]
[309776439,1704111047674,-582.01,0.00035616,2]
[309776440,1704111047683,-500.0,0.00035616,2]
[309776441,1704111047693,-500.0,0.00035616,2]
[309776442,1704111047703,-500.0,0.00035616,2]
[309776443,1704111047714,-500.0,0.00035616,2]
[309776444,1704111047724,-500.0,0.00035616,2]
[309776445,1704111047733,-500.0,0.00035616,2]
[309776446,1704111047743,-162.54978355,0.00035616,2]
[309776447,1704111047754,-500.0,0.00035616,2]
[309776448,1704111047765,-500.0,0.00035616,2]
[309776449,1704111047776,-500.0,0.00035616,2]
[309776450,1704111047786,-574.03214776,0.00035616,2]
[309776451,1704111047796,-500.0,0.00035616,2]
[309776452,1704111047805,-500.0,0.00035616,2]
[309776453,1704111047815,-500.0,0.00035616,2]
[309776454,1704111047825,-500.0,0.00035616,2]